Cogmind - Beta 11 X8 @@@ ROGUE MODE // 2021.11.23 @ 03:06:46 Player: biogoob Result: Destroyed by Y-54 Guardian with Gatling Laser Performance ------------- Evolutions (4) 2000 Regions Visited (8) 1600 Robots Destroyed (30) 150 Value Destroyed (519) 519 Prototype IDs (5) 100 Alien Tech Used (0) 0 Bonus (0) 0 TOTAL SCORE: 4369 Bonus ------- None Cogmind --------- Core Integrity 0/850 Matter 66/300 Energy 99/100 System Corruption 2% Temperature Cool (6) Movement Core (50) Location -6/Extension Parts ------- > --- POWER (1) -------- (None) > --- PROPULSION (3) --- (None) > --- UTILITY (9) ------ (None) > --- WEAPON (2) ------- (None) > --- INVENTORY (5) ---- Aluminum Leg Medium Storage Unit Experimental Sensor Array Lightning Gun Peak State ------------ > --- POWER ------------ Light Angular Momentum Engine > --- PROPULSION ------- Combat Airjet Combat Airjet > --- UTILITY ---------- Medium Storage Unit Experimental Sensor Array Advanced Terrain Scanner Improved Transmission Jammer Improved System Shield > --- WEAPON ----------- Flak Gun > --- INVENTORY -------- Aluminum Leg Coolant Injector Improved Transmission Jammer Lightning Gun Proton Missile Launcher Great Axe [Rating: 46] Favorites ----------- Power Ion Engine Engine Ion Engine Propulsion Aluminum Leg Leg Aluminum Leg Hover Unit Combat Airjet Flight Unit Cesium-ion Thruster Utility Sensor Array Device Sensor Array Storage Medium Storage Unit Processor Signal Interpreter Hackware Improved System Shield Protection Improved Weapon Shielding Weapon Assault Rifle Energy Gun EM Pulse Gun Ballistic Gun Assault Rifle Launcher Proton Missile Launcher Impact Weapon Heavy Mace Slashing Weapon Great Axe Build | -11 -10 -10 -10 -9 -8 -7 -6 -6 ------- Run | Scr Mat Min Exi Min Mat Fac Fac Ext Slots Evolved 8 | . . . . . 4 2 2 . Power . | . . . . . . . . . Propulsion 1 | . . . . . 1 . . . Utility 7 | . . . . . 3 2 2 . Weapon . | . . . . . . . . . Parts Attached 50 | . 8 . 1 1 9 13 15 3 Power 5 | . 1 . . . 1 1 2 . Engine 5 | . 1 . . . 1 1 2 . Core . | . . . . . . . . . Reactor . | . . . . . . . . . Propulsion 16 | . 5 . . . 4 4 3 . Treads . | . . . . . . . . . Leg 9 | . 5 . . . 4 . . . Wheel . | . . . . . . . . . Hover 6 | . . . . . . 3 3 . Flight 1 | . . . . . . 1 . . Utility 18 | . 1 . 1 . 2 5 7 2 Device 9 | . 1 . . . . 2 5 1 Storage 4 | . . . 1 . 1 1 1 . Processor 2 | . . . . . 1 1 . . Hackware 1 | . . . . . . . 1 . Protection 2 | . . . . . . 1 . 1 Artifact . | . . . . . . . . . Weapon 11 | . 1 . . 1 2 3 3 1 Energy Gun . | . . . . . . . . . Energy Cannon . | . . . . . . . . . Ballistic Gun 3 | . 1 . . . 1 . 1 . Ballistic Cannon . | . . . . . . . . . Launcher 3 | . . . . 1 1 . 1 . Special Weapon . | . . . . . . . . . Impact Weapon 2 | . . . . . . 2 . . Slashing Weapon 3 | . . . . . . 1 1 1 Piercing Weapon . | . . . . . . . . . Special Melee Weapon . | . . . . . . . . . Unidentified Prototypes 3 | . . . . . . 3 . . Parts Lost 23 | . 2 . . . 3 7 5 6 Power 5 | . 1 . . . . 2 2 . Propulsion 6 | . . . . . . 3 . 3 Utility 6 | . . . . . 1 1 2 2 Weapon 6 | . 1 . . . 2 1 1 1 Highest Loss Streak 6 | . 1 . . . 3 5 3 6 Average Slot Usage (%) 73 | . 99 100 100 100 60 44 43 47 Engine 9 | . 13 14 14 14 7 5 3 . Leg 16 | . 28 28 28 28 21 . . . Hover 4 | . . . . . . 8 11 17 Device 12 | . 13 14 14 14 5 10 16 15 Storage 9 | . 14 14 14 14 11 . 5 6 Energy Gun 2 | . 7 . . . . 3 . . Ballistic Gun 13 | . 20 28 28 27 11 . 1 . Impact Weapon 1 | . . . . . . 7 . . Naked Turns 187 | . . . . . 73 101 10 3 Heaviest Build 47 | 12 14 14 19 20 47 16 26 25 Greatest Support 60 | 20 20 20 20 20 60 24 33 33 Greatest Overweight (x) 8 | . . . . . 8 1 1 1 Average Overweight (x) . | . . . . . . . . . Largest Inventory Capacity 15 | . 8 8 10 10 15 10 10 10 Average Capacity 8 | . 8 8 8 10 11 5 9 9 Most Carried 11 | . 8 8 8 8 11 5 6 5 Average Carried 6 | . 7 8 8 8 9 4 4 4 Final Capacity 10 | 8 8 8 10 10 5 5 10 5 Final Carried 8 | 6 8 8 8 8 5 5 5 4 Class Distribution -------------------- 100% | Mutant Dominant Class ---------------- Mutant | -10/Materials Mutant | -10/Mines Mutant | -10/Exiles Mutant | -9/Mines Mutant | -8/Materials Mutant | -7/Factory Mutant | -6/Factory Mutant | -6/Extension Resources | -11 -10 -10 -10 -9 -8 -7 -6 -6 ----------- Run | Scr Mat Min Exi Min Mat Fac Fac Ext Matter Collected 668 | 200 176 . . 12 . 272 . 8 Remotely . | . . . . . . . . . Salvage Created 686 | . 350 . . 27 58 251 . . Parts 37 | . 24 . . 5 2 6 . . Haulers Intercepted 2 | . . . . . . 2 . . Recyclers Shooed 1 | . 1 . . . . . . . Parts Field Recycled . | . . . . . . . . . Retrieved Matter . | . . . . . . . . . Parts Self-Destructed . | . . . . . . . . . Prevented . | . . . . . . . . . Kills | -11 -10 -10 -10 -9 -8 -7 -6 -6 ------- Run | Scr Mat Min Exi Min Mat Fac Fac Ext Combat Hostiles Destroyed 20 | . 12 . . 3 5 . . . Guns 14 | . 12 . . . 2 . . . AOE 6 | . . . . 3 3 . . . Classes Destroyed 9 | . 2 . . . 3 4 . . Worker 4 | . . . . . . 4 . . Builder 2 | . . . . . . 2 . . Hauler 2 | . . . . . . 2 . . Mechanic 1 | . . . . . . 1 . . Operator 1 | . . . . . 1 . . . Swarmer 12 | . 6 . . 3 3 . . . Grunt 6 | . 6 . . . . . . . Sentry 1 | . . . . . 1 . . . Hunter 1 | . . . . . 1 . . . Best Kill Streak 5 | . 4 . . 3 5 4 . . Combat Bots Only 4 | . 4 . . 3 4 . . . Max Kills in Single Turn 3 | . 1 . . 3 2 1 . . Gunslinging . | . . . . . . . . . Exploded 3 | . . . . 3 1 . . . Melee . | . . . . . . . . . Uniques/NPCs Destroyed . | . . . . . . . . . Combat | -11 -10 -10 -10 -9 -8 -7 -6 -6 -------- Run | Scr Mat Min Exi Min Mat Fac Fac Ext Damage Taken 4415 | . 509 . . 10 749 1075 683 1389 Core 1758 | . 100 . . . 243 562 179 674 Absorbed by Shields 27 | . . . . . . . 27 . Core Remaining (%) 58 | 100 . . . 60 55 19 . . Volleys Fired 65 | . 37 . . 1 21 4 2 . Largest 2 | . 2 . . 1 2 2 2 . Hottest 67 | . 60 . . 30 59 60 67 . Shots Fired 125 | . 73 . . 1 39 8 4 . Gun 113 | . 73 . . . 30 8 2 . Cannon . | . . . . . . . . . Launcher 12 | . . . . 1 9 . 2 . Special . | . . . . . . . . . Kinetic 87 | . 55 . . . 30 . 2 . Thermal 8 | . . . . . . 8 . . Explosive 10 | . . . . 1 9 . . . Electromagnetic 20 | . 18 . . . . . 2 . Robot Hit Streak 11 | . 11 . . . 7 4 4 . Robot Miss Streak 4 | . 2 . . . 4 1 1 . Penetration Max . | . . . . . . . . . Secondary Targets 1 | . 1 . . . . . . . Max Gunslinging Chain 1 | . 1 . . . . . . . Shots Hit Robots 97 | . 51 . . . 23 18 4 1 Core Hits 47 | . 21 . . 3 12 3 7 1 Critical Kills . | . . . . . . . . . Critical Parts Destroyed 1 | . . . . . . 1 . . Critical Strikes 2 | . . . . . . 1 . 1 Smash 1 | . . . . . . 1 . . Sever 1 | . . . . . . . . 1 Melee Attacks 15 | . . . . . . 13 1 1 Impact 12 | . . . . . . 12 . . Slashing 3 | . . . . . . 1 1 1 Piercing . | . . . . . . . . . Sneak Attacks 8 | . . . . . . 8 . . Combat Hostiles . | . . . . . . . . . Follow-up Attacks . | . . . . . . . . . Damage Inflicted 2618 | . 618 . . 145 760 904 161 30 Guns 878 | . 618 . . . 151 51 58 . Cannons . | . . . . . . . . . Explosions 854 | . . . . 145 609 . 100 . Melee 868 | . . . . . . 838 . 30 Ramming 18 | . . . . . . 15 3 . Kinetic 649 | . 440 . . . 151 . 58 . Thermal 51 | . . . . . . 51 . . Explosive 754 | . . . . 145 609 . . . Electromagnetic 278 | . 178 . . . . . 100 . Impact 815 | . . . . . . 815 . . Slashing 53 | . . . . . . 23 . 30 Piercing . | . . . . . . . . . Highest Corruption 2 | . . . . . . 1 2 2 Average Corruption 1 | . . . . . . 1 1 2 Corruption Purged . | . . . . . . . . . Effects 5 | . . . . . . 4 . 1 Message Errors 2 | . . . . . . 2 . . Heat Flow Errors 1 | . . . . . . . . 1 Energy Discharges 1 | . . . . . . 1 . . Data Loss (minor) 1 | . . . . . . 1 . . Overload Shots . | . . . . . . . . . Overflow Damage 622 | . . . . . 81 541 . . Projectiles . | . . . . . . . . . Explosions 81 | . . . . . 81 . . . Melee 541 | . . . . . . 541 . . Knockbacks 3 | . . . . . . 3 . . Impact 3 | . . . . . . 3 . . Kinetic . | . . . . . . . . . Secondary . | . . . . . . . . . Self-Inflicted Damage 44 | . . . . . 36 7 1 . Shots 2 | . . . . . 2 . . . Rammed 5 | . . . . . . 4 1 . Targets Rammed 5 | . . . . . . 4 1 . Kicked . | . . . . . . . . . Crushed . | . . . . . . . . . Highest Temperature 161 | . 18 . . . 23 2 1 161 Average Temperature 17 | . 10 . . . 8 2 1 91 Received Heat Transfer 828 | . 132 . . . 189 171 72 264 Siege Activations . | . . . . . . . . . Robots Corrupted . | . . . . . . . . . Combat Hostiles . | . . . . . . . . . Parts Fried 10 | . 1 . . . . 9 . . Impact Corruptions 18 | . . . . . . 18 . . Robots Melted . | . . . . . . . . . Combat Hostiles . | . . . . . . . . . Parts Melted . | . . . . . . . . . Heat Transferred 222 | . . . . . . 222 . . Parts Sabotaged . | . . . . . . . . . Parts Stolen . | . . . . . . . . . Parts Stripped . | . . . . . . . . . Power Chain Reactions . | . . . . . . . . . Missiles Intercepted . | . . . . . . . . . Alert | -11 -10 -10 -10 -9 -8 -7 -6 -6 ------- Run | Scr Mat Min Exi Min Mat Fac Fac Ext Peak Influence 358 | . 194 8 . 70 350 358 136 59 Initial 158 | . . 8 . . 27 158 116 29 Average 112 | . 71 8 . 2 151 255 104 28 Maximum Alert Level 1 | . . . . . 1 1 . . Low Security (%) 80 | . 100 100 . 100 69 19 100 100 Level 1 19 | . . . . . 30 80 . . Level 2 . | . . . . . . . . . Level 3 . | . . . . . . . . . Level 4 . | . . . . . . . . . Level 5 . | . . . . . . . . . High Security . | . . . . . . . . . Max Security . | . . . . . . . . . Squads Dispatched 14 | . 3 . . . 3 6 2 . Investigation 4 | . 1 . . . . 3 . . Extermination 2 | . . . . . . 1 1 . Reinforcement 8 | . 2 . . . 3 2 1 . Assault . | . . . . . . . . . Garrison . | . . . . . . . . . Intercept . | . . . . . . . . . Construction Impeded . | . . . . . . . . . Haulers Reinforced . | . . . . . . . . . Active Scanning Responses . | . . . . . . . . . Cargo Convoy Interrupts . | . . . . . . . . . Stealth | -11 -10 -10 -10 -9 -8 -7 -6 -6 --------- Run | Scr Mat Min Exi Min Mat Fac Fac Ext Distress Signals 6 | . 1 . . . 3 2 . . Communications Jammed . | . . . . . . . . . Distress Signals . | . . . . . . . . . Times Spotted 78 | . 19 . . 2 20 24 8 5 Peak Tracking Total 10 | . 4 . . 3 7 10 5 5 Tactical Retreats 10 | . 1 . . . 1 5 3 . Traps | -11 -10 -10 -10 -9 -8 -7 -6 -6 ------- Run | Scr Mat Min Exi Min Mat Fac Fac Ext Traps Triggered 2 | . . . . . . . 2 . Indirectly . | . . . . . . . . . Trap Hack Attempts . | . . . . . . . . . Triggered . | . . . . . . . . . Disarmed . | . . . . . . . . . Reprogrammed . | . . . . . . . . . Reused . | . . . . . . . . . Traps Extracted . | . . . . . . . . . Installed . | . . . . . . . . . Triggered . | . . . . . . . . . Machines | -11 -10 -10 -10 -9 -8 -7 -6 -6 ---------- Run | Scr Mat Min Exi Min Mat Fac Fac Ext Machines Disabled 2 | . . . . . 2 . . . Max in Single Turn 1 | . . . . . 1 . . . Garrison Access 1 | . . . . . . . 1 . Machines Sabotaged . | . . . . . . . . . Garrisons Compromised . | . . . . . . . . . Overloaded Fab Kills . | . . . . . . . . . Hacking | -11 -10 -10 -10 -9 -8 -7 -6 -6 --------- Run | Scr Mat Min Exi Min Mat Fac Fac Ext Machines Accessed 19 | . 7 . 1 . 1 7 3 . Terminals 11 | . 7 . . . 1 1 2 . Fabricators 1 | . . . . . . 1 . . Repair Stations 2 | . . . . . . 2 . . Recycling Units 2 | . . . . . . 2 . . Scanalyzers . | . . . . . . . . . Garrison Access 2 | . . . . . . 1 1 . Total Hacks 57 | . 29 . 1 . 2 15 10 . Successful 28 | . 15 . 1 . 1 6 5 . Failed 28 | . 13 . . . 1 9 5 . Catastrophic 4 | . 2 . . . . 1 1 . Database Lockouts 1 | . 1 . . . . . . . Manual 26 | . 16 . . . 1 2 7 . Terminals 41 | . 29 . . . 2 2 8 . Fabricators 2 | . . . . . . 2 . . Repair Stations 2 | . . . . . . 2 . . Recycling Units 6 | . . . . . . 6 . . Scanalyzers . | . . . . . . . . . Garrison Access 5 | . . . . . . 3 2 . Terminal Hacks 12 | . 9 . 1 . 1 . 1 . Record 1 | . . . 1 . . . . . Robot Analysis 2 | . 2 . . . . . . . Prototype ID Bank 1 | . 1 . . . . . . . Open Door 1 | . . . . . . . 1 . Emergency Access Points 1 | . 1 . . . . . . . Alert Level 1 | . . . . . 1 . . . Locate Traps 1 | . 1 . . . . . . . Security Status 1 | . 1 . . . . . . . Recall Reinforcements 1 | . 1 . . . . . . . Zone Layout 2 | . 2 . . . . . . . Fabricator Hacks . | . . . . . . . . . Repair Station Hacks 1 | . . . . . . 1 . . Refit 1 | . . . . . . 1 . . Recycling Unit Hacks 4 | . . . . . . 4 . . Retrieve Matter 4 | . . . . . . 4 . . Scanalyzer . | . . . . . . . . . Garrison Access Hacks 1 | . . . . . . . 1 . Seal Access 1 | . . . . . . . 1 . Unauthorized Hacks 10 | . 6 . . . . 1 3 . Terminals 10 | . 6 . . . . 1 3 . Track 1 | . . . . . . . 1 . Botnet 8 | . 6 . . . . 1 1 . Operators 1 | . . . . . . . 1 . Fabricators . | . . . . . . . . . Repair Stations . | . . . . . . . . . Recycling Units . | . . . . . . . . . Scanalyzers . | . . . . . . . . . Garrison Access . | . . . . . . . . . Data Cores Recovered . | . . . . . . . . . Used . | . . . . . . . . . Hacking Detections 16 | . 7 . . . 1 6 2 . Full Trace Events 4 | . 1 . . . . 3 . . Feedback Events . | . . . . . . . . . Feedback Blocked . | . . . . . . . . . Robot Schematics Acquired . | . . . . . . . . . Robots Built . | . . . . . . . . . Authchips . | . . . . . . . . . Time . | . . . . . . . . . Total Robot Build Rating . | . . . . . . . . . Part Schematics Acquired . | . . . . . . . . . Parts Built . | . . . . . . . . . Authchips . | . . . . . . . . . Time . | . . . . . . . . . Total Part Build Rating . | . . . . . . . . . Parts Repaired . | . . . . . . . . . Time . | . . . . . . . . . Parts Recycled . | . . . . . . . . . Recycled Matter . | . . . . . . . . . Retrieved Matter . | . . . . . . . . . Retrieved Components . | . . . . . . . . . Parts Scanalyzed . | . . . . . . . . . Part Schematics Acquired . | . . . . . . . . . Parts Damaged . | . . . . . . . . . Bothacking | -11 -10 -10 -10 -9 -8 -7 -6 -6 ------------ Run | Scr Mat Min Exi Min Mat Fac Fac Ext Used RIF Installer . | . . . . . . . . . Robots Hacked . | . . . . . . . . . Non-combat . | . . . . . . . . . Combat . | . . . . . . . . . Robot Hacks Applied . | . . . . . . . . . Relay Couplers Released . | . . . . . . . . . Fabnet Peak Effective % . | . . . . . . . . . Robots Rewired . | . . . . . . . . . Allies Hacked . | . . . . . . . . . Hacks Repelled . | . . . . . . . . . Allies | -11 -10 -10 -10 -9 -8 -7 -6 -6 -------- Run | Scr Mat Min Exi Min Mat Fac Fac Ext Total Allies . | . . . . . . . . . Largest Group . | . . . . . . . . . Highest-Rated Group . | . . . . . . . . . Highest-Rated Ally . | . . . . . . . . . Total Orders . | . . . . . . . . . Ally Attacks . | . . . . . . . . . Total Damage . | . . . . . . . . . Kills . | . . . . . . . . . Allies Corrupted . | . . . . . . . . . Allies Melted . | . . . . . . . . . Intel | -11 -10 -10 -10 -9 -8 -7 -6 -6 ------- Run | Scr Mat Min Exi Min Mat Fac Fac Ext Robot Analysis Total 2 | . 2 . . . . . . . Derelict Logs Recovered . | . . . . . . . . . Drone Launches . | . . . . . . . . . Drone Recoveries . | . . . . . . . . . Exploration | -11 -10 -10 -10 -9 -8 -7 -6 -6 ------------- Run | Scr Mat Min Exi Min Mat Fac Fac Ext Turns Passed 2977 | . 894 39 223 340 356 531 512 82 Spaces Moved 2805 | 1 616 32 185 277 301 745 541 107 Core 473 | . . . . . 146 204 113 10 Treads . | . . . . . . . . . Legs 1266 | 1 616 32 185 277 155 . . . Wheels . | . . . . . . . . . Hover 1066 | . . . . . . 541 428 97 Flight . | . . . . . . . . . Fastest Speed 50 | 120 120 120 120 120 50 50 50 50 Average Speed 90 | 120 120 120 120 120 90 60 74 70 Slowest Speed 450 | 120 120 120 120 120 450 100 146 150 Overloaded Moves . | . . . . . . . . . Propulsion Burnouts . | . . . . . . . . . Robots Hopped . | . . . . . . . . . Cave-ins Triggered . | . . . . . . . . . Exploration Rate (%) 36 | 2 97 7 57 71 28 25 16 26 Regions Visited 8 Branch Regions 4 Pre-discovered Areas 2 | . . . 1 1 . . . . Known Exits Taken 1 | . . . . . . 1 . . Unknown Exits Taken 7 | 1 1 1 1 1 1 . 1 . Scrap Searched . | . . . . . . . . . Spaces Dug 1 | . . . . . . 1 . . Terrain Destroyed 71 | . . . . 7 63 1 . . Melee 1 | . . . . . . 1 . . Projectile . | . . . . . . . . . AOE 70 | . . . . 7 63 . . . Terrain Rammed . | . . . . . . . . . Walls Destroyed . | . . . . . . . . . Machines Disabled . | . . . . . . . . . Actions | -11 -10 -10 -10 -9 -8 -7 -6 -6 --------- Run | Scr Mat Min Exi Min Mat Fac Fac Ext Total 3103 | . 706 33 186 283 351 793 639 112 Wait 109 | . 27 . . 5 9 . 68 . Move 2798 | . 615 31 184 276 300 745 540 107 Hop . | . . . . . . . . . Pick Up 22 | . 9 1 . . 6 5 1 . Fast Attach 23 | . 1 . . . 2 8 11 1 Attach 13 | . 2 . . . 2 4 3 2 Detach 5 | . . . . . . 2 2 1 Swap 14 | . 5 . 1 1 5 1 1 . Drop 26 | . 10 1 1 . 6 8 . . Fire 65 | . 37 . . 1 21 4 2 . Melee 15 | . . . . . . 13 1 1 Ram 4 | . . . . . . 3 1 . Kick . | . . . . . . . . . Crush . | . . . . . . . . . Escape Stasis 9 | . . . . . . . 9 . Rewire . | . . . . . . . . . Trap . | . . . . . . . . . Miscellaneous . | . . . . . . . . . Route ------- -11/Scrapyard -10/Materials (discovered 4 exits: [*Mat x3] / [*Min]) -10/Mines -10/Exiles -9/Mines -8/Materials -7/Factory -6/Factory -6/Extension History --------- Turn | Location | Event 1 | -11/Scrapyard | Discovered new exit (range 0) 1 | -11/Scrapyard | Entered Materials 242 | -10/Materials | Discovered new exit (range 16) 325 | -10/Materials | Build established: Mutant 464 | -10/Materials | Discovered new exit (range 4) 476 | -10/Materials | Discovered new exit (range 14) 569 | -10/Materials | Central database locked down 672 | -10/Materials | Discovered new exit (range 16) 895 | -10/Materials | Entered Mines 919 | -10/Mines | Found a damaged Exp. Sensor Array with a note attached 922 | -10/Mines | Found Prototype Device 929 | -10/Mines | Deemed a non-threat by the Exiles lab entrance 929 | -10/Mines | Discovered new exit (range 5) 934 | -10/Mines | Entered Exiles 962 | -10/Exiles | Met 8R-AWN 984 | -10/Exiles | Met EX-HEX 1032 | -10/Exiles | Met EX-DEC 1039 | -10/Exiles | Learned location of Zion (-7) 1142 | -10/Exiles | Discovered new exit (range 14) 1157 | -10/Exiles | Entered Mines 1204 | -9/Mines | Met a Derelict bent on vengeance 1394 | -9/Mines | Learned location of Storage (-9) 1483 | -9/Mines | Discovered new exit (range 11) 1497 | -9/Mines | Entered Materials 1497 | -8/Materials | Evolved 4 slots: Propulsion x1, Utility x3 1780 | -8/Materials | Released all parts (8) 1789 | -8/Materials | Lost 3 parts (1u2w) 1847 | -8/Materials | Discovered new exit (range 14) 1853 | -8/Materials | Entered Factory 1853 | -7/Factory | Evolved 2 slots: Utility x2 2000 | -7/Factory | Identified Exp. Sensor Array 2365 | -7/Factory | Discovered new exit (range 16) 2366 | -7/Factory | Core integrity fell below 50% 2378 | -7/Factory | Identified exit to Factory 2383 | -7/Factory | Released all parts (3) 2384 | -7/Factory | Entered another Factory area 2384 | -6/Factory | Evolved 2 slots: Utility x2 2412 | -6/Factory | Lost 5 parts (1p2n1u1w) 2813 | -6/Factory | Lost 3 parts (1p2u) 2894 | -6/Factory | Discovered new exit (range 6) 2896 | -6/Factory | Entered Extension 2949 | -6/Extension | Spotted B-75 Beast 2952 | -6/Extension | Spotted B-75 Beast 2969 | -6/Extension | Core integrity fell below 50% 2975 | -6/Extension | Core integrity fell below 20% 2975 | -6/Extension | Released all parts (3) 2978 | -6/Extension | Destroyed by Y-54 Guardian with Gatling Laser Last Messages --------------- 02959_ K-01 Serf destroyed. 02959_ T-07 Excavator destroyed. 02960_ Acquired Lyr. Medium Armor Plating. 02960_ Machine disabled. 02960_ Knocked back. 02962_ Imp. Transmission Jammer destroyed. 02962_ Critical hit (Blast). 02962_ Knocked back. 02965_ Gravmag System destroyed. 02966_ Lyr. Medium Armor Plating destroyed. 02966_ Knocked back. 02967_ Acquired 6 matter. 02968_ Knocked back. 02970_ Acquired 2 matter. 02971_ Cmb. Airjet destroyed. 02971_ Door Terminal disabled. 02973_ Knocked back. 02975_ Released Imp. Transmission Jammer. 02975_ Released Coolant Injector. 02975_ Released Great Axe. Map ----- +----------------------------------------------------+ | ?????????????????????????????????????????????????? | | ?????????????????????????????????????????????????? | | ?????????????????????????????????????????????????? | | ?????????????????????????????????????????????????? | | ?????????????????????????????????????????????????? | | ?????????????????????????????????????????????????? | | ?????????????????????????????????????????????????? | | ???????????? ????????????????????????????????????? | | ???????????? ????????????????????????????????????? | | ???????????? ????????????????????????????????????? | | ???????????? ?????????? ?????????????????????????? | | ???????????# #????????# ?????????????????????????? | | ???????????# #????????# ?????????????????????????? | | ???????????# #????????# #????????????????????????? | | ???????????# #?######?# #????????????????????????? | | ?????????### ### ## ### ###??????????????????????? | | ?????????#"" "" " ""#??????????????????????? | | ????????## " " Y " " #??????????????????????? | | ????????# #??????????????????????? | | ????????## Y #??????????????????????? | | ### ##### w #############??????????? | | R ?????????? | | !% ?????????? | | * ????????? | | = = t % k k ????????? | | *%!%uu*BB @ ????????? | | ########## BB BB ########???????????????? | | ?????????# BB %;#?????????????????????? | | ?????????# ##?????????????????????? | | ?????????# ! #??????????????????????? | | ?????????# % !/ #??????????????????????? | | ?????????###### #"""#######??????????????????????? | | ??????????????###????????????????????????????????? | | ?????????????????????????????????????????????????? | | | | | | | | | | | | | | | | | | | | | | | | | | | | | | | | | +----------------------------------------------------+ Best States ------------- Heat Dissipation 37 Coolant Potential 65 Energy Generation 18 Energy Capacity 290 Matter Stores 300 Matter Capacity 300 Sight Range 18 Robot Scan Range 20 Terrain Scan Range 20 Terrain Scan Density 10 Jamming Range 12 Additional Mass Support 9 Weapon Shielding 66 Evasion (%) 55 Defensive Hacking 12 Item Schematics ----------------- None Robot Schematics ------------------ None Fabricated ------------ Nothing Alien Tech Used ----------------- None Achievements -------------- None Challenges ------------ None Game ------ Seed ConcussiveShrapnelCharger Manual? 0 Play Time 00:30:45 Cumulative 66.5 hours Start 2021.11.23 @ 02:36:24 End 2021.11.23 @ 03:06:46 Sessions 1 Manual Loads 0 Difficulty Rogue Special Mode None Game No. 75 Rogue 55 Adventurer 17 Explorer 3 Win Type - Total 1 Types 0/0/1/0/0/0/0/0/0 Lore% 38 Gallery% 44 Achievement% 42 Wizard Run 0 Options --------- ASCII 1 Keyboard 1 Movement Vi Keybinds 0 Fullscreen 1 Font 18/Terminus Map View 83x54 Tactical HUD 1 Map Filters SATURATION(80) Filters SATURATION(80) Steam 1 RUN: cfd6c9ae-cae8-4261-b251-2e4b9b0be4cd